Cogmind - Beta 10.2 @@@ ROGUE MODE // 2021.03.25 @ 15:46:28 Player: ChromeKnight Result: Self-destructed Performance ------------- Evolutions (2) 1000 Regions Visited (6) 1200 Robots Destroyed (53) 265 Value Destroyed (1433) 1433 Prototype IDs (1) 20 Alien Tech Used (0) 0 Bonus (818) 818 TOTAL SCORE: 4736 Bonus ------- High Alert Combat Kills 381 Follower Combat Kills 636 Friendly Fire -199 Cogmind --------- Core Integrity 213/550 Matter 122/300 Energy 140/140 System Corruption 3% Temperature Cool (9) Movement Walking (180) Ox2 Location -8/Storage Parts ------- > --- POWER (1) -------- Light Deuterium Engine > --- PROPULSION (4) --- Aluminum Leg > --- UTILITY (4) ------ Large Storage Unit Improved Signal Interpreter > --- WEAPON (2) ------- (None) > --- INVENTORY (10) --- Airjet Improved ECM Suite Maneuvering Thrusters Drone Bay (2/2) Drone Bay (2/2) Flak Gun Peak State ------------ > --- POWER ------------ Light Deuterium Engine > --- PROPULSION ------- Airjet Airjet Airjet Airjet > --- UTILITY ---------- Large Storage Unit Experimental Sensor Array Maneuvering Thrusters > --- WEAPON ----------- Improved Light Cannon Improved Light Cannon > --- INVENTORY -------- Light Deuterium Engine Airjet Airjet Improved Signal Interpreter EM Pulse Gun Flak Gun Flak Gun Flak Gun [Rating: 31] Favorites ----------- Power Ion Engine Engine Ion Engine Propulsion Aluminum Leg Leg Aluminum Leg Hover Unit Airjet Utility Large Storage Unit Device Experimental Sensor Array Storage Large Storage Unit Processor Improved Signal Interpreter Protection Light Armor Plating Weapon Improved Light Cannon Energy Gun Medium Laser Ballistic Gun Flak Gun Ballistic Cannon Improved Light Cannon Launcher EMP Blaster Slashing Weapon Katana Build | -11 -10 -10 -10 -9 -8 -8 ------- Run | Scr Mat Min Exi Min Mat Sto Slots Evolved 4 | . . . . . 4 . Power . | . . . . . . . Propulsion 2 | . . . . . 2 . Utility 2 | . . . . . 2 . Weapon . | . . . . . . . Parts Attached 42 | 6 3 . 1 2 16 14 Power 5 | 1 1 . . 1 1 1 Engine 5 | 1 1 . . 1 1 1 Core . | . . . . . . . Reactor . | . . . . . . . Propulsion 20 | 2 . . . 1 9 8 Treads . | . . . . . . . Leg 14 | 2 . . . 1 5 6 Wheel . | . . . . . . . Hover 6 | . . . . . 4 2 Flight . | . . . . . . . Utility 7 | 1 . . 1 . 3 2 Device 3 | . . . . . 2 1 Storage 2 | 1 . . 1 . . . Processor 1 | . . . . . 1 . Hackware . | . . . . . . . Protection 1 | . . . . . . 1 Artifact . | . . . . . . . Weapon 10 | 2 2 . . . 3 3 Energy Gun 2 | 2 . . . . . . Energy Cannon . | . . . . . . . Ballistic Gun 2 | . . . . . . 2 Ballistic Cannon 2 | . . . . . 2 . Launcher 3 | . 2 . . . 1 . Special Weapon . | . . . . . . . Impact Weapon . | . . . . . . . Slashing Weapon 1 | . . . . . . 1 Piercing Weapon . | . . . . . . . Special Melee Weapon . | . . . . . . . Unidentified Prototypes 1 | . . . . . 1 . Parts Lost 18 | . . . . 2 3 13 Power 2 | . . . . 1 1 . Propulsion 8 | . . . . . . 8 Utility 2 | . . . . . . 2 Weapon 6 | . . . . 1 2 3 Highest Loss Streak 7 | . . . . 2 3 7 Average Slot Usage (%) 81 | . 82 85 85 81 64 84 Engine 11 | . 14 14 14 13 8 9 Leg 21 | . 28 28 28 28 24 7 Hover 7 | . . . . . 7 20 Device 2 | . . . . . . 7 Storage 11 | . 14 14 14 14 9 9 Processor 2 | . . . . . . 9 Protection 1 | . . . . . . 4 Energy Gun 2 | . 18 . . . . . Ballistic Cannon 5 | . . . . . 3 15 Launcher 14 | . 6 28 28 24 11 . Naked Turns . | . . . . . . . Heaviest Build 33 | 11 16 16 28 28 30 33 Greatest Support 74 | 20 20 20 20 30 74 40 Greatest Overweight (x) 10 | 1 . . 1 1 2 10 Average Overweight (x) . | . . . . . . . Largest Inventory Capacity 12 | 6 6 6 12 10 10 10 Average Capacity 8 | 5 6 6 6 10 10 10 Most Carried 10 | 1 6 6 6 8 10 10 Average Carried 7 | . 3 6 6 6 9 9 Final Capacity 10 | 6 6 6 10 10 10 10 Final Carried 8 | 1 6 6 6 8 8 6 Class Distribution -------------------- 82% | Mutant 9% | Commander-Mutant 7% | Scavenger-Mutant Dominant Class ---------------- Mutant | -10/Materials Mutant | -10/Mines Mutant | -10/Exiles Mutant | -9/Mines Mutant | -8/Materials Mutant | -8/Storage Resources | -11 -10 -10 -10 -9 -8 -8 ----------- Run | Scr Mat Min Exi Min Mat Sto Matter Collected 1221 | 225 30 8 . 132 301 525 Remotely . | . . . . . . . Salvage Created 1538 | . 35 28 . 173 439 863 Parts 97 | . 10 2 . 13 20 52 Haulers Intercepted 4 | . . . . . 2 2 Recyclers Shooed 1 | . . . . . 1 . Parts Field Recycled . | . . . . . . . Retrieved Matter . | . . . . . . . Parts Self-Destructed . | . . . . . . . Prevented . | . . . . . . . Kills | -11 -10 -10 -10 -9 -8 -8 ------- Run | Scr Mat Min Exi Min Mat Sto Combat Hostiles Destroyed 38 | . 2 4 . 7 9 16 Melee 2 | . . . . . . 2 Guns 3 | . . . . . . 3 Cannons 10 | . . . . . . 10 AOE 23 | . 2 4 . 7 9 1 Classes Destroyed 11 | . 3 1 . 2 3 2 Worker 4 | . 1 . . 2 . 1 Builder 2 | . . . . . . 2 Hauler 4 | . . . . . 2 2 Recycler 2 | . . . . . 1 1 Watcher 3 | . 1 . . . 1 1 Swarmer 12 | . 2 3 . 4 3 . Grunt 14 | . . . . 2 5 7 Brawler 2 | . . . . . 1 1 Duelist 2 | . . . . 1 . 1 Sentry 7 | . . . . . . 7 Assembled 1 | . . 1 . . . . Thug 1 | . . . . . 1 . Best Kill Streak 10 | . 2 3 . 5 10 6 Combat Bots Only 9 | . 2 3 . 4 9 6 Max Kills in Single Turn 4 | . 2 3 . 4 4 3 Gunslinging . | . . . . . . . Exploded 4 | . 1 3 . 4 4 1 Melee 1 | . . . . . . 1 Uniques/NPCs Destroyed . | . . . . . . . Combat | -11 -10 -10 -10 -9 -8 -8 -------- Run | Scr Mat Min Exi Min Mat Sto Damage Taken 2446 | . 80 98 . 196 342 1730 Core 414 | . 19 6 . 52 35 302 Absorbed by Shields . | . . . . . . . Core Remaining (%) 84 | 100 . . . 69 . . Volleys Fired 95 | . 6 4 . 6 14 65 Largest 2 | . 1 2 . 2 2 2 Hottest 78 | . 30 63 . 63 78 78 Shots Fired 164 | . 6 8 . 12 27 111 Gun 11 | . . . . . . 11 Cannon 116 | . . . . . 16 100 Launcher 37 | . 6 8 . 12 11 . Special . | . . . . . . . Kinetic 127 | . . . . . 16 111 Thermal . | . . . . . . . Explosive 22 | . 6 4 . 6 6 . Electromagnetic 15 | . . 4 . 6 5 . Robot Hit Streak 14 | . 1 2 . 5 5 14 Robot Miss Streak 7 | . 2 1 . 2 3 7 Penetration Max . | . . . . . . . Secondary Targets . | . . . . . . . Shots Hit Robots 108 | . 2 4 . 6 16 80 Core Hits 108 | . 9 6 . 13 31 49 Critical Hits 2 | . . . . . 1 1 Critical Kills . | . . . . . . . Critical Parts Destroyed 2 | . . . . . 1 1 Melee Attacks 16 | . . . . . . 16 Impact . | . . . . . . . Slashing 16 | . . . . . . 16 Piercing . | . . . . . . . Sneak Attacks . | . . . . . . . Combat Hostiles . | . . . . . . . Follow-up Attacks . | . . . . . . . Damage Inflicted 4918 | . 288 354 . 490 1246 2540 Guns 193 | . . . . . . 193 Cannons 1414 | . . . . . 214 1200 Explosions 2894 | . 288 354 . 490 1024 738 Melee 393 | . . . . . . 393 Ramming 24 | . . . . . 8 16 Kinetic 1607 | . . . . . 214 1393 Thermal 291 | . . . . 28 263 . Explosive 1981 | . 288 248 . 218 489 738 Electromagnetic 622 | . . 106 . 244 272 . Impact . | . . . . . . . Slashing 393 | . . . . . . 393 Piercing . | . . . . . . . Highest Corruption 3 | . . 1 1 1 1 3 Average Corruption 1 | . . 1 1 1 1 2 Corruption Purged . | . . . . . . . Effects 24 | . . 2 . 5 1 16 Message Errors 9 | . . 1 . 2 . 6 Matter Fused 4 | . . . . . . 4 Heat Flow Errors 1 | . . . . . . 1 Energy Discharges 2 | . . . . 1 1 . Data Loss (minor) 4 | . . 1 . 2 . 1 Targeting Errors 3 | . . . . . . 3 Weapon Failures 1 | . . . . . . 1 Overload Shots . | . . . . . . . Overflow Damage 160 | . . 25 . . 60 75 Projectiles 14 | . . . . . 1 13 Explosions 146 | . . 25 . . 59 62 Melee . | . . . . . . . Knockbacks 7 | . . . . . . 7 Impact . | . . . . . . . Kinetic 7 | . . . . . . 7 Secondary . | . . . . . . . Self-Inflicted Damage 393 | . 32 43 . 122 129 67 Shots 16 | . 1 3 . 7 4 1 Rammed 3 | . . . . . 1 2 Targets Rammed 3 | . . . . . 1 2 Kicked . | . . . . . . . Crushed . | . . . . . . . Highest Temperature 377 | . . 6 . 24 64 377 Average Temperature 80 | . . 3 . 10 25 101 Received Heat Transfer 849 | . . . . 12 99 738 Effects 4 | . . . . . . 4 Shutdowns 1 | . . . . . . 1 Matter Decay 1 | . . . . . . 1 Short Circuit 1 | . . . . . . 1 Damage (minor) 1 | . . . . . . 1 Siege Activations . | . . . . . . . Robots Corrupted . | . . . . . . . Combat Hostiles . | . . . . . . . Parts Fried 1 | . . . . . 1 . Impact Corruptions . | . . . . . . . Robots Melted . | . . . . . . . Combat Hostiles . | . . . . . . . Parts Melted . | . . . . . . . Heat Transferred 450 | . . . . 50 400 . Parts Sabotaged . | . . . . . . . Parts Stolen . | . . . . . . . Parts Stripped . | . . . . . . . Power Chain Reactions 3 | . . . . 1 2 . Missiles Intercepted . | . . . . . . . Alert | -11 -10 -10 -10 -9 -8 -8 ------- Run | Scr Mat Min Exi Min Mat Sto Peak Influence 1121 | . 112 113 . 185 506 1121 Initial 213 | . . 43 . . 13 213 Average 335 | . 17 111 . 95 199 829 Maximum Alert Level 4 | . . . . . 2 4 Low Security (%) 63 | 100 100 100 . 100 62 . Level 1 4 | . . . . . 3 11 Level 2 9 | . . . . . 33 16 Level 3 21 | . . . . . . 66 Level 4 1 | . . . . . . 5 Level 5 . | . . . . . . . High Security . | . . . . . . . Max Security . | . . . . . . . Squads Dispatched 10 | . 1 . . . 1 8 Investigation 3 | . . . . . 1 2 Extermination . | . . . . . . . Reinforcement 3 | . 1 . . . . 2 Assault 3 | . . . . . . 3 Garrison 1 | . . . . . . 1 Intercept . | . . . . . . . Construction Impeded 2 | . . . . . . 2 Haulers Reinforced . | . . . . . . . Stealth | -11 -10 -10 -10 -9 -8 -8 --------- Run | Scr Mat Min Exi Min Mat Sto Distress Signals 4 | . . . . . 2 2 Communications Jammed . | . . . . . . . Distress Signals . | . . . . . . . Times Spotted 84 | . 9 11 . 7 17 40 Peak Tracking Total 10 | . 4 7 . 4 10 10 Tactical Retreats 5 | . 1 . . . 1 3 Traps | -11 -10 -10 -10 -9 -8 -8 ------- Run | Scr Mat Min Exi Min Mat Sto Traps Triggered 3 | . . . . . 1 2 Indirectly . | . . . . . . . Trap Hack Attempts . | . . . . . . . Triggered . | . . . . . . . Disarmed . | . . . . . . . Reprogrammed . | . . . . . . . Reused . | . . . . . . . Traps Extracted . | . . . . . . . Installed . | . . . . . . . Triggered . | . . . . . . . Machines | -11 -10 -10 -10 -9 -8 -8 ---------- Run | Scr Mat Min Exi Min Mat Sto Machines Disabled 10 | . . . . 1 1 8 Max in Single Turn 2 | . . . . 1 1 2 Garrison Access 1 | . . . . . . 1 Machines Sabotaged . | . . . . . . . Garrisons Compromised . | . . . . . . . Overloaded Fab Kills . | . . . . . . . Fab Network Shutdowns . | . . . . . . . Hacking | -11 -10 -10 -10 -9 -8 -8 --------- Run | Scr Mat Min Exi Min Mat Sto Machines Accessed 8 | . . . . . . 8 Terminals 6 | . . . . . . 6 Fabricators . | . . . . . . . Repair Stations 1 | . . . . . . 1 Recycling Units . | . . . . . . . Scanalyzers . | . . . . . . . Garrison Access 1 | . . . . . . 1 Total Hacks 18 | . . . . . . 18 Successful 8 | . . . . . . 8 Failed 10 | . . . . . . 10 Catastrophic 4 | . . . . . . 4 Database Lockouts . | . . . . . . . Manual 3 | . . . . . . 3 Terminals 13 | . . . . . . 13 Fabricators . | . . . . . . . Repair Stations 2 | . . . . . . 2 Recycling Units . | . . . . . . . Scanalyzers . | . . . . . . . Garrison Access 3 | . . . . . . 3 Terminal Hacks 5 | . . . . . . 5 Part Schematic 2 | . . . . . . 2 Robot Schematic 1 | . . . . . . 1 Open Door 1 | . . . . . . 1 Locate Traps 1 | . . . . . . 1 Fabricator Hacks . | . . . . . . . Repair Station Hacks 2 | . . . . . . 2 Scan Component 1 | . . . . . . 1 Repair 1 | . . . . . . 1 Recycling Unit Hacks . | . . . . . . . Scanalyzer . | . . . . . . . Garrison Access Hacks . | . . . . . . . Unauthorized Hacks 1 | . . . . . . 1 Terminals 1 | . . . . . . 1 Detonate 1 | . . . . . . 1 Fabricators . | . . . . . . . Repair Stations . | . . . . . . . Recycling Units . | . . . . . . . Scanalyzers . | . . . . . . . Garrison Access . | . . . . . . . Data Cores Recovered . | . . . . . . . Used . | . . . . . . . Hacking Detections 7 | . . . . . . 7 Full Trace Events 2 | . . . . . . 2 Feedback Events . | . . . . . . . Feedback Blocked . | . . . . . . . Robot Schematics Acquired 1 | . . . . . . 1 Robots Built . | . . . . . . . Matter . | . . . . . . . Time . | . . . . . . . Total Robot Build Rating . | . . . . . . . Part Schematics Acquired 2 | . . . . . . 2 Parts Built . | . . . . . . . Matter . | . . . . . . . Time . | . . . . . . . Total Part Build Rating . | . . . . . . . Parts Repaired 1 | . . . . . . 1 Time 80 | . . . . . . 80 Parts Recycled . | . . . . . . . Recycled Matter . | . . . . . . . Retrieved Matter . | . . . . . . . Retrieved Components . | . . . . . . . Parts Scanalyzed . | . . . . . . . Part Schematics Acquired . | . . . . . . . Parts Damaged . | . . . . . . . Bothacking | -11 -10 -10 -10 -9 -8 -8 ------------ Run | Scr Mat Min Exi Min Mat Sto Used RIF Installer . | . . . . . . . Robots Hacked . | . . . . . . . Non-combat . | . . . . . . . Combat . | . . . . . . . Robot Hacks Applied . | . . . . . . . Relay Couplers Released 1 | . . . . . . 1 Machine Destruction 1 | . . . . . . 1 Robots Rewired . | . . . . . . . Allies Hacked . | . . . . . . . Hacks Repelled . | . . . . . . . Allies | -11 -10 -10 -10 -9 -8 -8 -------- Run | Scr Mat Min Exi Min Mat Sto Total Allies 13 | . . . . 3 . 10 Largest Group 10 | . . . . 3 1 10 Highest-Rated Group 173 | . . . . 79 31 173 Highest-Rated Ally 31 | . . . . 31 31 29 Total Orders . | . . . . . . . Ally Attacks 132 | . . . . 6 11 115 Total Damage 1855 | . . . . 80 210 1565 Kills 24 | . . . . 3 4 17 Allies Corrupted . | . . . . . . . Allies Melted . | . . . . . . . Intel | -11 -10 -10 -10 -9 -8 -8 ------- Run | Scr Mat Min Exi Min Mat Sto Robot Analysis Total . | . . . . . . . Derelict Logs Recovered 4 | . . 2 . 2 . . Drone Launches . | . . . . . . . Drone Recoveries . | . . . . . . . Exploration | -11 -10 -10 -10 -9 -8 -8 ------------- Run | Scr Mat Min Exi Min Mat Sto Turns Passed 2886 | 39 332 340 180 793 332 870 Spaces Moved 2081 | 29 259 273 143 521 239 617 Core 12 | 9 . . . . . 3 Treads . | . . . . . . . Legs 1459 | 20 259 273 143 521 163 80 Wheels . | . . . . . . . Hover 610 | . . . . . 76 534 Flight . | . . . . . . . Fastest Speed 48 | 50 120 120 120 120 48 48 Average Speed 110 | 101 120 120 125 145 100 72 Slowest Speed 550 | 120 120 120 150 150 180 550 Overloaded Moves . | . . . . . . . Propulsion Burnouts . | . . . . . . . Robots Hopped . | . . . . . . . Cave-ins Triggered . | . . . . . . . Exploration Rate (%) 49 | 3 49 52 49 88 23 83 Regions Visited 6 Branch Regions 4 Pre-discovered Areas 1 | . . 1 . . . . Known Exits Taken 1 | . . . . . 1 . Unknown Exits Taken 5 | 1 1 1 1 1 . . Scrap Searched 2 | . . . . 2 . . Spaces Dug . | . . . . . . . Terrain Destroyed 257 | . 35 33 . 57 72 60 Melee . | . . . . . . . Projectile 9 | . . . . . . 9 AOE 248 | . 35 33 . 57 72 51 Terrain Rammed . | . . . . . . . Walls Destroyed . | . . . . . . . Machines Disabled . | . . . . . . . Actions | -11 -10 -10 -10 -9 -8 -8 --------- Run | Scr Mat Min Exi Min Mat Sto Total 2477 | 35 273 278 144 544 304 899 Wait 199 | . . . . 14 15 170 Move 2075 | 28 258 272 142 520 238 617 Hop . | . . . . . . . Pick Up 20 | 1 4 1 . 1 9 4 Fast Attach 23 | 6 1 . 1 1 6 8 Attach 11 | . . . . . 7 4 Detach 2 | . 1 . . . 1 . Swap 8 | . 2 . . 1 3 2 Drop 20 | . 1 1 1 . 10 7 Fire 95 | . 6 4 . 6 14 65 Melee 16 | . . . . . . 16 Ram 2 | . . . . . . 2 Kick 1 | . . . . . 1 . Crush . | . . . . . . . Escape Stasis . | . . . . . . . Rewire 5 | . . . . 1 . 4 Trap . | . . . . . . . Miscellaneous . | . . . . . . . Route ------- -11/Scrapyard -10/Materials (discovered 2 exits: [*Mat] / [*Min]) -10/Mines -10/Exiles -9/Mines (discovered 2 exits: [*Mat x2]) -8/Materials -8/Storage History --------- Turn | Location | Event 15 | -11/Scrapyard | Discovered new exit (range 15) 40 | -11/Scrapyard | Entered Materials 194 | -10/Materials | Discovered new exit (range 16) 302 | -10/Materials | Build established: Mutant 366 | -10/Materials | Discovered new exit (range 6) 372 | -10/Materials | Entered Mines 419 | -10/Mines | Met a Derelict bent on vengeance 450 | -10/Mines | Found a damaged Exp. Sensor Array with a note attached 453 | -10/Mines | Found Prototype Device 635 | -10/Mines | Assembled infested the area 708 | -10/Mines | Deemed a non-threat by the Exiles lab entrance 708 | -10/Mines | Discovered new exit (range 5) 712 | -10/Mines | Entered Exiles 742 | -10/Exiles | Met 8R-AWN 762 | -10/Exiles | Met EX-HEX 808 | -10/Exiles | Met EX-DEC 880 | -10/Exiles | Discovered new exit (range 10) 892 | -10/Exiles | Entered Mines 925 | -9/Mines | Discovered new exit (range 12) 1072 | -9/Mines | Received a Mining Laser from a helpful Derelict 1261 | -9/Mines | Discovered new exit (range 6) 1448 | -9/Mines | Learned Materials emergency access door positions 1499 | -9/Mines | Learned 2 Materials zone layouts 1685 | -9/Mines | Entered Materials 1685 | -8/Materials | Accompanied by 1 ally 1685 | -8/Materials | Evolved 4 slots: Propulsion x2, Utility x2 1686 | -8/Materials | Identified exit to Storage 1690 | -8/Materials | Led the pair of lost Derelicts to an unsafe place 1932 | -8/Materials | Destroyed 9 combat bots 1950 | -8/Materials | Lost 3 parts (1p2w) 2010 | -8/Materials | Identified Exp. Sensor Array 2017 | -8/Materials | Entered Storage 2112 | -8/Storage | Assisted by bots powering up and referring to "LRC-V3" 2288 | -8/Storage | Garrison activated, responded to threat 2506 | -8/Storage | Repaired Exp. Sensor Array 2817 | -8/Storage | First assault squad dispatched 2882 | -8/Storage | Core integrity fell below 50% 2887 | -8/Storage | Self-destructed Last Messages --------------- 02857_ G-50 Soldier unfolds itself. 02857_ G-47 Trooper unfolds itself. 02857_ I-25 Savior unfolds itself. 02857_ Exp. Sensor Array destroyed. 02869_ G-47 Trooper destroyed. 02871_ C-30 ARC bursts open, deploying its payload. 02871_ G-50 Soldier unfolds itself. 02871_ G-47 Trooper unfolds itself. 02871_ M-28 Smith unfolds itself. 02873_ B-36 Bruiser destroyed. 02874_ Compression Vault explodes. 02874_ G-47 Trooper destroyed. 02874_ Flak Gun destroyed. 02874_ Aluminum Leg destroyed. 02874_ ALERT: Construction progress impeded, dispatching reinforcements to local area. 02883_ R-06 Scavenger collects Lgt. Armor Plating. 02884_ Katana destroyed. 02885_ Acquired Aluminum Leg. 02887_ Flak Gun destroyed. Map ----- +----------------------------------------------------+ | | | | | | | | | | | | | | | | | | | | | | | ???????????????????????????????????????????##????? | | ???????????????????????????????????????????# | | ???????????????????????????????????????????# """" | | ???????????????????????????????????????????# """" | | ?????????????????#?????????????????????????# """" | | ?????????#########"##############??????????# """" | | ???????? !* #??????????# | | ???????? =%= * #??????????# | | ???????? [ =] a #??????"???# = | | ???????????????##+######## #?????"Y"#######+# | | ????????????????????### #????? #! # | | ????????????????????# m #?????""" """ # # | | ????????????????????# gg*% #???? """ """ + # | | ????????????????????# ==g%i # """ """ """ # # | | ????????????????????# @*%g g/# # # | | ????????????????????# ] g% # + # | | ????????????????????# *[ g r######### ##### # | | ????????????????????# #a ############### # | | ????????????????????# # %+ * ## # | | ????????????????????##########/##### [[ ## # | | ?????????????????????????# # """ % %# | | ???????????????????????### """ """ # """ + | | ???????????????????????#"" """%"T" #="""" # | | ???????????????????????#"T """ #="""" # [ | | ???????????????????????#"" # ## # | | ???????????????????????### % =[]# ##%=# | | ?????????????????????????# % *[#####" "####[*+ | | ?????????????????????????#[ % %%/#???#"R"#??#!%# | | ?????????????????????????#######+###???#"""#??# !# | | ???????????????????????????????# #?????########=%# | | ????????????????????????########*#???###??#"""#[/# | | ????????????????????????#!!!!#=#%#####T####"T"#%!# | | ????????????????????????# %/%%=! /!/# | | ????????????????????????#!! # #=^![ / # | | ????????????????????????######T#!% " # | | ????????????????????############= !* "" # | | ????????????????????# % %= " + | | ????????????????????# =% ^^ """" # | | ????????????????????# % """" # | +----------------------------------------------------+ Best States ------------- Heat Dissipation 31 Energy Generation 15 Energy Capacity 250 Matter Stores 300 Matter Capacity 300 Sight Range 16 Robot Scan Range 30 Terrain Scan Density 10 Armor Coverage 150 Evasion (%) 55 Item Schematics ----------------- Falx | -8/Storage | Hacked Assault Cannon | -8/Storage | Hacked Robot Schematics ------------------ B-36 Bruiser | -8/Storage | Hacked Fabricated ------------ Nothing Alien Tech Used ----------------- None Achievements -------------- None Challenges ------------ None Game ------ Seed FocalGodTrap Manual? 0 Play Time 00:23:28 Cumulative 91.1 hours Start 2021.03.25 @ 15:27:33 End 2021.03.25 @ 15:46:28 Sessions 1 Manual Loads 0 Difficulty Rogue Special Mode None Game No. 235 Rogue 82 Adventurer 148 Explorer 5 Win Type - Total 1 Types 1/0/0/0/0/0/0/0/0 Lore% 56 Gallery% 65 Achievement% 52 Wizard Run 0 Options --------- ASCII 0 Keyboard 0 Movement Numpad Keybinds 0 Fullscreen 1 Font 14/X11 Map View 84x54 Tactical HUD 1 Map Filters NONE Filters NONE Steam 1 RUN: 7bc9dbc7-6bb9-4274-ae01-d73a399b58ee